bitfinex-derivatives/quotes_SOLF0:USTF0_20250318
["timestamp","ask_amount","ask_price","bid_price","bid_amount"]
[1742277454161,8.0254,124.62,124.6,12.06883442]
[1742277454355,28.68,124.63,124.6,12.06883442]
[1742277454550,28.68,124.63,124.6,12.12999543]
[1742277454756,8.0248,124.63,124.6,12.12999543]
[1742277454956,28.68,124.64,124.61,12.06883442]
[1742277455156,8.0242,124.64,124.61,12.06883442]
[1742277455560,8.0242,124.64,124.61,20.09413442]
[1742277455957,8.0242,124.64,124.62,12.06883442]
[1742277457255,28.68,124.65,124.62,12.06883442]
[1742277457857,8.0243,124.63,124.62,12.06883442]
[1742277463364,8.025,124.62,124.61,12.06883442]
[1742277463565,28.68,124.63,124.6,12.12999543]
[1742277463954,8.0256,124.61,124.6,12.12999543]
[1742277464362,28.68,124.63,124.6,12.12999543]
[1742277464665,8.0252,124.62,124.6,12.12999543]
[1742277465166,36.7047,124.63,124.61,12.06883442]
[1742277465363,28.68,124.65,124.61,12.06883442]
[1742277465760,8.0241,124.64,124.62,0.05565656]
[1742277466759,8.0241,124.64,124.62,12.12449098]
[1742277468460,28.68,124.65,124.62,12.12449098]
[1742277468765,28.68,124.66,124.62,12.12449098]
[1742277469464,8.024,124.64,124.62,12.12449098]
[1742277471157,8.0234,124.65,124.62,20.14949098]
[1742277471559,28.68,124.66,124.62,12.12449098]
[1742277472266,28.68,124.66,124.62,0.05565656]
[1742277472468,8.0241,124.64,124.62,12.12449098]
[1742277473465,8.0228,124.66,124.63,8.0243]
[1742277473673,28.66,124.67,124.64,12.06883442]
[1742277473963,36.6823,124.67,124.64,12.06883442]
[1742277474562,36.6823,124.67,124.64,20.09253442]
[1742277474870,31.60149528,124.72,124.66,12.06883442]
[1742277475061,28.66,124.71,124.68,12.06883442]
[1742277475265,28.66,124.71,124.68,12.12180296]
[1742277476367,40.72883442,124.71,124.68,0.05296854]
[1742277477573,8.0205,124.69,124.68,0.05296854]
[1742277477871,36.6805,124.69,124.68,0.05296854]
[1742277479770,36.6805,124.69,124.68,6.854e-05]
[1742277487078,48.74933442,124.69,124.68,6.854e-05]
[1742277488278,8.0256,124.61,124.6,4.034]
[1742277488478,8.0256,124.61,124.6,16.10283442]
[1742277489380,8.0256,124.61,124.6,12.06883442]
[1742277490278,36.73771014,124.62,124.6,12.06883442]
[1742277490479,36.73771014,124.62,124.61,12.06883442]
[1742277491978,36.73771014,124.62,124.59,276.8718975]
[1742277491979,8.0263,124.6,124.59,12.12073192]
[1742277493182,8.0263,124.6,124.59,0.0518975]
[1742277493480,36.6863,124.6,124.59,0.0518975]
[1742277494282,28.66,124.6,124.59,0.0518975]
[1742277494983,36.6863,124.6,124.59,0.0518975]
[1742277495484,28.66,124.6,124.59,0.0518975]
[1742277496584,36.6863,124.6,124.59,0.0518975]
[1742277498183,48.74883442,124.6,124.5,11.16475501]
[1742277498485,12.06883442,124.52,124.5,11.16475501]
[1742277498686,28.72,124.51,124.5,11.16475501]
[1742277498883,36.7521,124.51,124.5,11.16475501]
[1742277499187,28.72,124.51,124.49,44.71670527]
[1742277499388,40.80883442,124.5,124.49,44.71670527]
[1742277499691,48.84153442,124.5,124.49,44.71670527]
[1742277501085,48.84153442,124.5,124.49,0.05768521]
[1742277502191,20.10153442,124.5,124.49,0.05768521]
[1742277502390,48.82153442,124.5,124.49,0.05768521]
[1742277506399,36.7527,124.5,124.49,0.05768521]
[1742277516111,48.82153442,124.5,124.49,0.05768521]
[1742277516703,8.0359,124.45,124.44,4.0806]
[1742277517503,36.7355,124.46,124.44,4.0806]
[1742277517714,28.7,124.46,124.44,4.0806]
[1742277518016,28.75392558,124.46,124.44,4.13296497]
[1742277519004,36.78962558,124.46,124.44,4.13296497]
[1742277520013,8.0359,124.45,124.44,0.05236497]
[1742277526119,36.78952558,124.46,124.44,0.05236497]
[1742277526723,8.0359,124.45,124.44,0.05236497]
[1742277529723,40.82276,124.46,124.44,0.05236497]
[1742277530424,8.0359,124.45,124.44,0.05236497]
[1742277536136,48.85836,124.46,124.44,0.05236497]
[1742277536330,36.78952558,124.46,124.44,0.05236497]
[1742277538733,28.75392558,124.46,124.44,0.05236497]
[1742277538939,28.75392558,124.46,124.44,12.12119939]
[1742277539438,28.75392558,124.46,124.45,20.10473442]
[1742277539640,0.05392558,124.46,124.45,20.10473442]
[1742277541335,0.05392558,124.46,124.45,8.0359]
[1742277541731,0.05392558,124.46,124.45,20.10473442]
[1742277544134,0.05392558,124.46,124.45,24.31483442]
[1742277544530,8.0326,124.51,124.47,8.034]
[1742277544734,28.7,124.5,124.47,12.06883442]
[1742277545135,28.7,124.5,124.48,8.0337]
[1742277545633,28.7,124.5,124.48,20.10253442]
[1742277545940,28.75607148,124.5,124.49,8.0334]
[1742277546137,0.05607148,124.5,124.49,8.0334]
[1742277547032,0.05607148,124.5,124.49,20.10223442]
[1742277547941,0.05607148,124.5,124.49,12.06883442]
[1742277549036,0.05607148,124.5,124.49,20.10223442]
[1742277550143,14.75933375,124.57,124.49,48.80883442]
[1742277550447,14.75933375,124.57,124.53,12.06883442]
[1742277550640,28.7,124.58,124.53,12.06883442]
[1742277551142,0.05854889,124.57,124.54,8.08560198]
[1742277552149,0.05854889,124.57,124.54,20.1544364]
[1742277553048,0.05854889,124.57,124.55,8.0294]
[1742277554149,0.05854889,124.57,124.54,12.1246364]
[1742277555146,0.05854889,124.57,124.56,20.09773442]
[1742277555853,0.05854889,124.57,124.56,12.06883442]
[1742277559247,0.05854889,124.57,124.56,20.09773442]
[1742277571959,28.66,124.61,124.56,12.06883442]
[1742277572161,28.66,124.61,124.58,12.06883442]
[1742277572351,28.66,124.61,124.59,8.0269]
[1742277572855,28.66,124.61,124.58,12.06883442]
[1742277573155,28.66,124.61,124.59,8.08635098]
[1742277574062,8.0252,124.62,124.59,8.08635098]
[1742277574360,36.6852,124.62,124.59,20.1551854]
[1742277576852,8.0257,124.61,124.59,20.1551854]
[1742277579565,36.6853,124.62,124.59,20.1551854]
[1742277579763,28.66,124.62,124.59,20.1551854]
[1742277580866,8.0259,124.61,124.59,20.1551854]
[1742277582764,8.0259,124.61,124.59,12.1282854]
[1742277583370,8.0259,124.61,124.59,0.05945098]
[1742277584571,8.0259,124.61,124.59,20.1551854]
[1742277584771,36.6853,124.62,124.59,20.1551854]
[1742277584962,28.66,124.62,124.59,12.1282854]
[1742277585573,8.0261,124.61,124.59,12.1282854]
[1742277587574,28.66,124.64,124.59,20.1550854]
[1742277587770,12.06883442,124.66,124.61,12.06883442]
[1742277587970,28.66,124.64,124.61,12.06883442]
[1742277588170,28.66,124.64,124.62,0.05897129]
[1742277588375,36.684,124.64,124.62,0.05897129]
[1742277588877,36.6833,124.65,124.62,8.08397129]
[1742277589170,42.84853442,124.67,124.62,12.12780571]
[1742277589371,28.66,124.67,124.63,12.06883442]
[1742277590377,8.0227,124.66,124.63,12.06883442]
[1742277591173,36.6827,124.66,124.63,12.06883442]
[1742277591875,8.0227,124.66,124.63,12.06883442]
[1742277592077,36.6827,124.66,124.63,12.06883442]
[1742277592479,8.0231,124.65,124.63,12.06883442]
[1742277592678,28.66,124.66,124.63,12.06883442]
[1742277592877,28.66,124.66,124.62,12.12780571]
[1742277593180,40.72883442,124.66,124.62,0.05897129]
[1742277594473,8.0243,124.63,124.62,0.05897129]
[1742277600588,20.09313442,124.63,124.62,7.129e-05]
[1742277601379,22.25743442,124.63,124.62,7.129e-05]
[1742277605882,22.25313442,124.63,124.54,12.06883442]
[1742277606090,12.06883442,124.6,124.54,12.06883442]
[1742277606290,28.66,124.59,124.54,12.06883442]
[1742277607087,8.0292,124.56,124.55,0.05752571]
[1742277607288,36.6892,124.56,124.55,0.05752571]
[1742277612684,28.66,124.56,124.55,0.05752571]
[1742277613491,28.66,124.57,124.55,0.05752571]
[1742277614188,8.0289,124.56,124.55,0.05752571]
[1742277615292,36.6885,124.57,124.55,0.05752571]
[1742277615790,28.66,124.57,124.55,0.05752571]
[1742277616290,28.66,124.57,124.55,8.08642571]
[1742277616885,28.66,124.57,124.55,20.15526013]
[1742277617588,36.6882,124.57,124.55,12.12636013]
[1742277620190,28.66,124.57,124.55,12.12636013]
[1742277621492,36.6883,124.57,124.55,12.12636013]
[1742277621794,28.66,124.57,124.55,0.05752571]
[1742277622093,40.72883442,124.57,124.55,0.05752571]
[1742277622893,8.0289,124.56,124.55,0.05752571]
[1742277627191,36.6889,124.56,124.55,0.05752571]
[1742277627898,8.0289,124.56,124.55,0.05752571]
[1742277628090,36.6889,124.56,124.55,0.05752571]
[1742277629095,48.75773442,124.56,124.55,0.05752571]
[1742277637308,8.0285,124.57,124.55,0.05752571]
[1742277637507,28.66,124.56,124.55,0.05752571]
[1742277638603,40.72883442,124.56,124.55,2.571e-05]
[1742277638997,40.72883442,124.56,124.49,2.0338]
[1742277639199,12.06883442,124.52,124.49,2.0338]
[1742277639404,40.72883442,124.51,124.48,2.081]
[1742277639600,28.66,124.5,124.47,2.1175]
[1742277640211,28.71780776,124.5,124.47,2.17084968]
[1742277640610,36.75080776,124.5,124.47,2.17084968]
[1742277641712,28.71780776,124.5,124.47,14.2396841]
[1742277642212,36.75090776,124.5,124.47,14.2396841]
[1742277644014,8.0335,124.49,124.47,14.2396841]
[1742277644211,28.68,124.48,124.47,14.2396841]
[1742277645611,28.68,124.48,124.47,2.17084968]
[1742277646316,36.714,124.48,124.47,2.17084968]
[1742277647116,28.68,124.48,124.47,2.17084968]
[1742277649220,36.714,124.48,124.47,2.17084968]
[1742277649810,28.68,124.48,124.47,2.17084968]
[1742277650616,36.714,124.48,124.47,2.17084968]
[1742277659729,28.68,124.48,124.47,2.17084968]
[1742277660727,8.09100776,124.5,124.47,14.2396841]
[1742277661028,0.05780776,124.5,124.47,14.2396841]
[1742277661426,0.05780776,124.5,124.47,22.2738841]
[1742277661831,0.05780776,124.5,124.47,14.2396841]
[1742277662330,0.05780776,124.5,124.48,20.10253442]
[1742277663832,0.05780776,124.5,124.49,8.0334]
[1742277665626,0.05780776,124.5,124.49,20.10223442]
[1742277666229,28.68,124.57,124.49,48.78883442]
[1742277666430,28.68,124.57,124.53,12.06883442]
[1742277667321,28.68,124.57,124.54,8.09030836]
[1742277667322,0.05252695,124.56,124.54,8.09030836]
[1742277668028,0.05252695,124.56,124.55,8.0295]
[1742277668532,28.68,124.59,124.55,12.06883442]
[1742277668728,28.68,124.59,124.56,12.06883442]
[1742277669729,12.06883442,124.58,124.54,0.06060836]
[1742277669931,28.68,124.57,124.54,0.06060836]
[1742277670826,40.74883442,124.57,124.54,0.06060836]
[1742277671229,40.74883442,124.57,124.55,8.0295]
[1742277673033,12.06883442,124.56,124.54,0.06060836]
[1742277673332,28.66,124.55,124.54,0.06060836]
[1742277673927,40.72883442,124.55,124.54,0.06060836]
[1742277674334,48.75833442,124.55,124.54,0.06060836]
[1742277674529,40.72883442,124.55,124.48,12.06883442]
[1742277674735,12.06883442,124.53,124.48,12.06883442]
[1742277674935,28.66,124.52,124.49,8.0331]
[1742277675733,28.71241847,124.52,124.49,8.08447988]
[1742277676037,36.74381847,124.52,124.49,8.08447988]
[1742277676437,36.74381847,124.52,124.49,0.05137988]
[1742277678336,36.74381847,124.52,124.49,8.08467988]
[1742277680437,36.74381847,124.52,124.5,12.06883442]
[1742277680438,28.71241847,124.52,124.5,12.06883442]
[1742277680638,28.71241847,124.52,124.51,12.06883442]
[1742277680833,0.05241847,124.52,124.51,12.06883442]
[1742277681035,0.05241847,124.52,124.51,20.10093442]
[1742277685039,0.05241847,124.52,124.51,24.43393442]
[1742277694248,1.847e-05,124.52,124.51,24.43393442]
[1742277694447,12.06883442,124.59,124.56,8.0282]
[1742277694744,28.66,124.58,124.54,12.06883442]
[1742277695143,28.66,124.58,124.56,8.0285]
[1742277695440,28.66,124.58,124.54,12.06883442]
[1742277695638,28.66,124.58,124.56,8.0285]
[1742277696041,28.66,124.58,124.57,8.0282]
[1742277696551,28.66,124.58,124.56,8.0285]
[1742277697355,28.66,124.58,124.57,8.0282]
[1742277697944,14.17293442,124.6,124.58,8.0273]
[1742277698145,28.66,124.59,124.56,12.06883442]
[1742277698351,28.66,124.59,124.58,0.05778644]
[1742277698551,28.66,124.59,124.58,8.08508644]
[1742277698750,28.66,124.59,124.58,0.05778644]
[1742277698951,40.72883442,124.59,124.53,289.10883442]
[1742277699150,12.06883442,124.57,124.53,285.0705]
[1742277699454,28.66,124.56,124.53,8.0305]
[1742277699849,36.689,124.56,124.53,8.0305]
[1742277700247,36.74995348,124.56,124.53,8.08232223]
[1742277703053,28.72095348,124.56,124.54,8.0299]
[1742277703754,36.74985348,124.56,124.54,8.0299]
[1742277704057,36.74985348,124.56,124.53,12.12065665]
[1742277704856,36.74985348,124.56,124.54,8.0301]
[1742277705557,28.72095348,124.56,124.54,8.0301]
[1742277705752,28.72095348,124.56,124.54,20.09893442]
[1742277706559,28.72095348,124.56,124.55,8.0295]
[1742277706759,0.06095348,124.56,124.55,8.0295]
[1742277707052,0.06095348,124.56,124.55,20.09833442]
[1742277707955,0.06095348,124.56,124.54,20.09863442]
[1742277708757,8.08985348,124.56,124.54,20.09863442]
[1742277709257,0.06095348,124.56,124.54,20.09863442]
[1742277710053,0.06095348,124.56,124.54,12.06883442]
[1742277710257,0.06095348,124.56,124.55,8.0295]
[1742277712159,0.06095348,124.56,124.55,20.09833442]
[1742277720358,12.06883442,124.62,124.55,40.72883442]
[1742277720558,12.06883442,124.62,124.57,12.06883442]
[1742277720763,28.66,124.61,124.57,12.06883442]
[1742277720959,36.6857,124.61,124.57,12.06883442]
[1742277721160,40.72883442,124.62,124.57,12.06883442]
[1742277721364,40.72883442,124.62,124.56,12.06883442]
[1742277721365,8.0275,124.59,124.56,12.06883442]
[1742277721666,8.0275,124.59,124.58,0.05839175]
[1742277722261,36.6866,124.6,124.58,0.05839175]
[1742277723269,28.66,124.6,124.58,8.08589175]
[1742277723466,12.06883442,124.63,124.58,12.12722617]
[1742277723673,28.66,124.63,124.61,8.0253]
[1742277723966,28.66,124.63,124.61,8.07981982]
[1742277724173,8.0234,124.65,124.63,8.0243]
[1742277724363,36.6834,124.65,124.61,12.12335424]
[1742277724766,36.6834,124.65,124.63,8.0242]
[1742277725260,8.0227,124.66,124.63,8.0242]
[1742277725460,106.89046995,124.67,124.63,12.06883442]
[1742277725665,106.89046995,124.67,124.63,12.12362567]
[1742277726468,36.6818,124.67,124.64,8.0234]
[1742277726775,28.66,124.67,124.64,20.09223442]
[1742277727268,23.20183153,124.69,124.64,12.06883442]
[1742277727472,40.70883442,124.68,124.64,12.06883442]
[1742277727671,12.06883442,124.68,124.64,12.06883442]
[1742277727871,8.0224,124.66,124.63,12.12362567]
[1742277728268,8.0224,124.66,124.63,0.05479125]
[1742277728567,28.64,124.66,124.63,0.05479125]
[1742277728763,40.70883442,124.66,124.63,0.05479125]
[1742277729669,12.06883442,124.65,124.63,0.05479125]
[1742277729873,28.64,124.64,124.63,0.05479125]
[1742277730073,36.6637,124.64,124.63,0.05479125]
[1742277738085,28.64,124.64,124.63,0.05479125]
[1742277738280,4.2375,124.71,124.63,0.05479125]
[1742277738281,12.06883442,124.68,124.63,12.12362567]
[1742277738479,28.64,124.67,124.63,12.06883442]
[1742277738679,36.6623,124.67,124.64,0.06067309]
[1742277739084,28.64,124.67,124.64,0.06067309]
[1742277740083,28.64,124.67,124.64,20.15310751]
[1742277741577,28.64,124.67,124.64,0.06067309]
[1742277742475,8.0228,124.66,124.64,0.06067309]
[1742277744089,36.662,124.67,124.64,8.08427309]
[1742277744383,28.64,124.67,124.64,20.15310751]
[1742277744788,28.64,124.67,124.65,8.023]
[1742277745189,28.64,124.67,124.65,20.09183442]
[1742277745487,28.64,124.68,124.65,20.09183442]
[1742277746087,28.64,124.68,124.65,12.06883442]
[1742277746390,28.64,124.68,124.64,12.12950751]
[1742277747084,8.0222,124.67,124.64,12.12950751]
[1742277747888,8.0227,124.66,124.64,12.12950751]
[1742277748189,8.0227,124.66,124.64,0.06067309]
[1742277748589,36.6427,124.66,124.64,0.06067309]
[1742277750587,8.0231,124.65,124.64,0.06067309]
[1742277752002,28.62,124.66,124.64,0.06067309]
[1742277752003,36.6426,124.66,124.64,0.06067309]
[1742277752493,28.62,124.66,124.64,8.08407309]
[1742277752694,28.62,124.66,124.64,20.15290751]
[1742277752895,28.62,124.67,124.65,12.06883442]
[1742277753395,28.62,124.67,124.65,20.09163442]
[1742277754896,36.642,124.67,124.65,20.09163442]
[1742277755297,36.642,124.67,124.65,12.06883442]
[1742277755493,36.642,124.67,124.64,20.15280751]
[1742277755891,8.0225,124.66,124.64,20.15280751]
[1742277756496,36.642,124.67,124.64,20.15280751]
[1742277756697,36.642,124.67,124.65,8.023]
[1742277760302,28.62,124.67,124.65,8.023]
[1742277761804,8.0219,124.67,124.64,20.15290751]
[1742277762204,8.0231,124.65,124.64,0.06067309]
[1742277762407,28.62,124.66,124.64,0.06067309]
[1742277762803,36.6426,124.66,124.64,0.06067309]
[1742277766410,28.62,124.66,124.64,8.08417309]
[1742277766907,28.62,124.66,124.64,0.06067309]
[1742277767113,36.6425,124.66,124.64,0.06067309]
[1742277769409,28.62,124.66,124.64,0.06067309]
[1742277770110,36.6427,124.66,124.64,0.06067309]
[1742277770308,40.68883442,124.66,124.64,0.06067309]
[1742277770910,34.65441721,124.66,124.64,0.06067309]
[1742277771208,8.0231,124.65,124.64,0.06067309]
[1742277774813,63.62834993,124.71,124.64,12.12950751]
[1742277774814,28.62,124.68,124.64,12.12950751]
[1742277775012,28.62,124.67,124.64,12.12950751]
[1742277775211,28.62,124.67,124.65,12.06883442]
[1742277775409,28.62,124.67,124.65,20.09153442]
[1742277776511,28.62,124.67,124.65,8.0227]
[1742277777214,28.62,124.67,124.64,20.15280751]
[1742277778410,36.6418,124.67,124.64,0.06067309]
[1742277779111,36.6418,124.67,124.64,8.08427309]
[1742277779416,36.6418,124.67,124.64,0.06067309]
[1742277780714,8.0224,124.66,124.64,0.06067309]
[1742277781018,28.62,124.65,124.64,0.06067309]
[1742277781511,28.62,124.65,124.64,8.08437309]
[1742277784514,28.62,124.65,124.64,20.15320751]
[1742277788514,28.62,124.65,124.64,12.12950751]
[1742277788720,28.62,124.65,124.64,0.06067309]
[1742277790209,28.62,124.65,124.64,8.08437309]
[1742277790619,28.62,124.65,124.64,0.06067309]
[1742277792517,28.62,124.65,124.64,8.08437309]
[1742277793925,28.62,124.65,124.64,0.06067309]
[1742277795027,40.68883442,124.65,124.59,288.86883442]
[1742277795221,12.06883442,124.64,124.59,12.06883442]
[1742277795427,28.62,124.63,124.59,12.06883442]
[1742277796028,28.62,124.63,124.59,20.09533442]
[1742277796223,0.05923003,124.62,124.6,0.05956807]
[1742277796423,28.62,124.61,124.6,0.05956807]
[1742277796928,28.62,124.61,124.6,20.15470249]
[1742277797227,0.05923003,124.62,124.6,12.12840249]
[1742277797431,0.05923003,124.62,124.61,20.09443442]
[1742277797724,28.62,124.65,124.61,12.06883442]
[1742277798030,28.62,124.65,124.64,20.09203442]
[1742277800327,28.62,124.67,124.66,8.0221]
[1742277800830,28.62,124.67,124.65,20.14557839]
[1742277801030,28.62,124.67,124.65,0.05404397]
[1742277801427,8.0224,124.66,124.65,0.05404397]
[1742277810444,36.6424,124.66,124.65,0.05404397]
[1742277810942,28.62,124.66,124.65,0.05404397]
[1742277811538,28.62,124.66,124.65,8.07714397]
[1742277812445,36.6424,124.66,124.65,0.05404397]
[1742277813640,28.62,124.66,124.65,8.07714397]
[1742277814040,12.06883442,124.7,124.65,0.05404397]
[1742277814248,28.62,124.69,124.65,0.05404397]
[1742277814641,8.0221,124.67,124.65,0.05404397]
[1742277814841,28.62,124.66,124.65,0.05404397]
[1742277815036,8.0221,124.67,124.65,0.05404397]
[1742277815237,28.62,124.66,124.65,8.07704397]
[1742277815847,28.62,124.66,124.65,0.05404397]
[1742277816955,12.06883442,124.7,124.65,0.05404397]
[1742277817150,28.62,124.69,124.65,0.05404397]
[1742277818040,8.022,124.67,124.65,0.05404397]
[1742277818240,28.62,124.66,124.65,0.05404397]
[1742277820853,36.6424,124.66,124.65,0.05404397]
[1742277825551,48.70883442,124.66,124.54,399.63230518]
[1742277825751,12.06883442,124.61,124.54,418.1021396]
[1742277826052,28.62,124.6,124.54,418.1021396]
[1742277826460,40.68883442,124.6,124.55,23.23358943]
[1742277826654,0.05881121,124.59,124.56,0.05882482]
[1742277826957,28.62,124.58,124.56,0.05882482]
[1742277827957,28.62,124.58,124.56,12.12765924]
[1742277829859,36.6476,124.58,124.56,12.12765924]
[1742277831362,36.6476,124.58,124.56,0.05882482]
[1742277831556,28.62,124.58,124.56,0.05882482]
[1742277832465,36.6482,124.58,124.56,0.05882482]
[1742277833462,8.0282,124.57,124.56,0.05882482]
[1742277841563,20.09703442,124.57,124.56,0.05882482]
[1742277841770,8.0282,124.57,124.56,0.05882482]
[1742277843070,48.71673442,124.58,124.56,0.05882482]
[1742277843464,40.68883442,124.58,124.56,0.05882482]
[1742277843660,28.62,124.57,124.56,0.05882482]
[1742277845169,20.09643442,124.58,124.56,0.05882482]
[1742277845368,28.62,124.57,124.56,0.05882482]
[1742277848174,0.05881121,124.59,124.56,0.05882482]
[1742277848371,28.62,124.58,124.56,12.12765924]
[1742277848870,28.62,124.58,124.56,0.05882482]
[1742277850576,28.62,124.58,124.56,8.08762482]
[1742277851177,28.62,124.58,124.57,8.0282]
[1742277852377,0.05881121,124.59,124.58,8.0276]
[1742277852576,0.05881121,124.59,124.58,20.09643442]
[1742277854475,0.05881121,124.59,124.58,8.0276]
[1742277855378,0.05881121,124.59,124.58,20.09643442]
[1742277860477,0.05881121,124.59,124.58,12.06883442]
[1742277860682,0.05881121,124.59,124.57,20.09683442]
[1742277860878,0.05881121,124.59,124.57,12.06883442]
[1742277861378,0.05881121,124.59,124.57,20.09663442]
[1742277864678,0.05881121,124.59,124.57,8.0278]
[1742277865183,0.05881121,124.59,124.58,8.0276]
[1742277868189,0.05881121,124.59,124.57,8.028]
[1742277868483,0.05881121,124.59,124.56,0.05882482]
[1742277868691,40.68883442,124.58,124.56,0.05882482]
[1742277869087,20.09703442,124.57,124.56,0.05882482]
[1742277869883,12.06883442,124.57,124.5,6.1931]
[1742277870088,40.68883442,124.56,124.51,12.06883442]
[1742277870287,48.71803442,124.56,124.51,12.06883442]
[1742277870586,28.62,124.56,124.52,12.06883442]
[1742277870787,28.62,124.56,124.53,8.0303]
[1742277870991,0.05133717,124.55,124.53,8.08893733]
[1742277872189,0.05133717,124.55,124.54,8.0301]
[1742277872379,0.05133717,124.55,124.54,20.09893442]
[1742277873593,0.05133717,124.55,124.54,8.0301]
[1742277874195,0.05133717,124.55,124.53,20.15797175]
[1742277874495,8.08083717,124.55,124.53,0.05863733]
[1742277874689,36.70083717,124.55,124.53,0.05863733]
[1742277875795,28.67133717,124.55,124.53,0.05863733]
[1742277876292,36.70093717,124.55,124.53,0.05863733]
[1742277876787,28.67133717,124.55,124.53,0.05863733]
[1742277877686,28.67133717,124.55,124.53,8.08903733]
[1742277878190,36.70083717,124.55,124.53,0.05863733]
[1742277879898,8.0301,124.54,124.53,0.05863733]
[1742277885111,36.70113717,124.55,124.53,0.05863733]
[1742277885508,28.67133717,124.55,124.53,0.05863733]
[1742277885807,8.0301,124.54,124.53,0.05863733]
[1742277897231,20.09893442,124.54,124.53,0.05863733]
[1742277901929,20.09893442,124.54,124.48,12.06883442]
[1742277901930,8.0332,124.5,124.46,18.46953442]
[1742277902133,28.62,124.49,124.46,26.50433442]
[1742277903025,28.68054793,124.49,124.46,26.56027567]
[1742277904530,28.68054793,124.49,124.47,8.0346]
[1742277905532,36.71394793,124.49,124.46,26.56047567]
[1742277906232,36.71394793,124.49,124.47,8.0346]
[1742277906528,28.68054793,124.49,124.47,8.0346]
[1742277908536,36.71394793,124.49,124.47,8.0346]
[1742277909433,28.68054793,124.49,124.47,8.0346]
[1742277910434,28.68054793,124.49,124.48,8.034]
[1742277911537,28.68054793,124.49,124.47,8.0344]
[1742277912534,28.68054793,124.49,124.46,18.52547567]
[1742277913129,28.68054793,124.49,124.47,8.0344]
[1742277914335,28.68054793,124.49,124.46,2.24644125]
[1742277914530,12.06883442,124.48,124.46,0.05594125]
[1742277914735,28.62,124.47,124.46,0.05594125]
[1742277914933,36.6547,124.47,124.46,0.05594125]
[1742277915337,28.62,124.47,124.46,0.05594125]
[1742277916431,0.06054793,124.49,124.48,8.034]
[1742277916635,28.68054793,124.49,124.48,8.034]
[1742277918341,28.68054793,124.49,124.47,8.0343]
[1742277919942,36.71424793,124.49,124.46,12.31454125]
[1742277920139,28.68054793,124.49,124.46,4.27954125]
[1742277920742,0.06054793,124.49,124.47,12.06883442]
[1742277921143,0.06054793,124.49,124.48,8.034]
[1742277921444,0.06054793,124.49,124.48,20.10283442]
[1742277921644,12.06883442,124.53,124.48,12.06883442]
[1742277921845,28.62,124.52,124.51,8.0315]
[1742277922340,40.68883442,124.53,124.51,8.0315]
[1742277922540,28.62,124.53,124.51,8.0315]
[1742277922745,28.67972712,124.53,124.51,8.0915284]
[1742277923545,28.67972712,124.53,124.52,8.0314]
[1742277923843,28.67972712,124.53,124.51,0.0600284]
[1742277924347,28.67972712,124.53,124.51,8.0916284]
[1742277928548,0.05972712,124.53,124.51,8.0916284]
[1742277928750,28.62,124.52,124.51,8.0916284]
[1742277929041,28.62,124.52,124.35,24.1271]
[1742277929249,12.06883442,124.47,124.43,2.0334]
[1742277929439,28.62,124.46,124.43,2.0334]
[1742277930352,28.67945071,124.46,124.43,2.09429598]
[1742277930555,28.67945071,124.46,124.43,14.1631304]
[1742277931455,28.67945071,124.46,124.43,2.09429598]
[1742277931652,36.71485071,124.46,124.43,2.09429598]
[1742277931954,28.67945071,124.46,124.43,2.09429598]
[1742277933649,8.0363,124.45,124.43,2.09429598]
[1742277933850,40.74828513,124.46,124.43,2.09429598]
[1742277934454,8.0363,124.45,124.43,2.09429598]
[1742277935356,12.06883442,124.45,124.43,2.09429598]
[1742277936154,12.06883442,124.45,124.43,0.06089598]
[1742277936351,20.10503442,124.45,124.43,0.06089598]
[1742277936552,12.06883442,124.45,124.43,0.06089598]
[1742277936855,36.6566,124.44,124.43,0.06089598]
[1742277938058,48.72543442,124.44,124.43,0.06089598]
[1742277944862,40.68883442,124.44,124.38,2.0242]
[1742277945066,12.06883442,124.42,124.38,2.0242]
[1742277945362,36.6782,124.42,124.39,8.0398]
[1742277945560,28.64,124.42,124.38,14.09303442]
[1742277946057,0.05766819,124.41,124.39,0.05218772]
[1742277946365,0.05766819,124.41,124.39,8.09198772]
[1742277946663,0.05766819,124.41,124.39,0.05218772]
[1742277946864,0.05766819,124.41,124.4,8.0392]
[1742277947069,0.05766819,124.41,124.39,0.05218772]